[Event "Titled Tuesday Blitz May 24 Late 2022"]
[White "Oparin, Grigoriy"]
[Black "Griffith, Kyron"]
[WhiteFideId "24125890"]
[BlackFideId "2046318"]
[WhiteElo "2665"]
[BlackElo "2232"]
[Result "1/2-1/2"]
[Round "05"]
[TimeControl "180+1"]
[Date "2022.05.24"]
[WhiteClock "0:00:13"]
[BlackClock "0:00:14"]

1. c4 {[%clk 0:03:00]}  Nf6 {[%clk 0:02:58]} 2. Nf3 {[%clk 0:03:01]}  g6 {[%clk 0:02:55]} 3. g3 {[%clk 0:03:01]}  Bg7 {[%clk 0:02:55]} 4. Bg2 {[%clk 0:03:02]}  O-O {[%clk 0:02:56]} 5. Nc3 {[%clk 0:03:02]}  d6 {[%clk 0:02:56]} 6. d4 {[%clk 0:03:02]}  c6 {[%clk 0:02:56]} 7. O-O {[%clk 0:03:02]}  Qa5 {[%clk 0:02:56]} 8. e4 {[%clk 0:03:01]}  e5 {[%clk 0:02:56]} 9. d5 {[%clk 0:03:00]}  cxd5 {[%clk 0:02:56]} 10. cxd5 {[%clk 0:02:59]}  b5 {[%clk 0:02:56]} 11. Re1 {[%clk 0:02:51]}  b4 {[%clk 0:02:55]} 12. Nb1 {[%clk 0:02:51]}  Nbd7 {[%clk 0:02:50]} 13. Bg5 {[%clk 0:02:51]}  Nc5 {[%clk 0:02:43]} 14. Nbd2 {[%clk 0:02:43]}  Ba6 {[%clk 0:02:41]} 15. Bxf6 {[%clk 0:02:42]}  Bxf6 {[%clk 0:02:42]} 16. Bf1 {[%clk 0:02:42]}  Rfc8 {[%clk 0:02:33]} 17. Nc4 {[%clk 0:02:30]}  Bxc4 {[%clk 0:02:28]} 18. Bxc4 {[%clk 0:02:31]}  Na4 {[%clk 0:02:25]} 19. Qe2 {[%clk 0:02:16]}  Nxb2 {[%clk 0:02:20]} 20. Bb5 {[%clk 0:02:16]}  Na4 {[%clk 0:02:15]} 21. Bc6 {[%clk 0:02:17]}  Rab8 {[%clk 0:02:14]} 22. Qc4 {[%clk 0:02:14]}  Qc5 {[%clk 0:02:04]} 23. Rec1 {[%clk 0:02:02]}  Qxc4 {[%clk 0:01:59]} 24. Rxc4 {[%clk 0:02:03]}  Nc3 {[%clk 0:01:57]} 25. a3 {[%clk 0:01:43]}  a5 {[%clk 0:01:51]} 26. axb4 {[%clk 0:01:43]}  axb4 {[%clk 0:01:52]} 27. Kf1 {[%clk 0:01:43]}  Bd8 {[%clk 0:01:23]} 28. Ne1 {[%clk 0:01:43]}  Bb6 {[%clk 0:01:09]} 29. Rxb4 {[%clk 0:01:38]}  Bd4 {[%clk 0:01:08]} 30. Rxb8 {[%clk 0:01:31]}  Rxb8 {[%clk 0:01:09]} 31. Nf3 {[%clk 0:01:00]}  Nxe4 {[%clk 0:01:01]} 32. Nxd4 {[%clk 0:00:59]}  exd4 {[%clk 0:01:02]} 33. Rd1 {[%clk 0:00:59]}  Rb2 {[%clk 0:00:54]} 34. Rxd4 {[%clk 0:00:58]}  Nxf2 {[%clk 0:00:48]} 35. Bd7 {[%clk 0:00:59]}  h5 {[%clk 0:00:41]} 36. Kg1 {[%clk 0:00:25]}  f5 {[%clk 0:00:40]} 37. Ra4 {[%clk 0:00:21]}  Ng4 {[%clk 0:00:35]} 38. Ra6 {[%clk 0:00:19]}  Nxh2 {[%clk 0:00:32]} 39. Rxd6 {[%clk 0:00:19]}  Nf3+ {[%clk 0:00:32]} 40. Kf1 {[%clk 0:00:20]}  Kf7 {[%clk 0:00:25]} 41. Ra6 {[%clk 0:00:12]}  Ne5 {[%clk 0:00:21]} 42. Be6+ {[%clk 0:00:10]}  Kf6 {[%clk 0:00:22]} 43. Bc8+ {[%clk 0:00:10]}  Kg5 {[%clk 0:00:20]} 44. d6 {[%clk 0:00:10]}  Rd2 {[%clk 0:00:19]} 45. Ke1 {[%clk 0:00:10]}  Nf3+ {[%clk 0:00:19]} 46. Kf1 {[%clk 0:00:10]}  Kg4 {[%clk 0:00:18]} 47. d7 {[%clk 0:00:10]}  Kxg3 {[%clk 0:00:17]} 48. Rxg6+ {[%clk 0:00:11]}  Kf4 {[%clk 0:00:16]} 49. Rg8 {[%clk 0:00:11]}  Nh2+ {[%clk 0:00:15]} 50. Ke1 {[%clk 0:00:11]}  Nf3+ {[%clk 0:00:16]} 51. Kf1 {[%clk 0:00:12]}  Nh2+ {[%clk 0:00:14]} 52. Ke1 {[%clk 0:00:12]}  Nf3+ {[%clk 0:00:14]} 53. Kf1 {[%clk 0:00:13]} 1/2-1/2


[Site "https://www.chess.com"]

[Event "Titled Tuesday Blitz May 24 Late 2022"]
[White "Pershin, Denis"]
[Black "Jacobson, Brandon"]
[WhiteFideId "24165506"]
[BlackFideId "30901561"]
[WhiteElo "2275"]
[BlackElo "2362"]
[Result "0-1"]
[Round "05"]
[TimeControl "180+1"]
[Date "2022.05.24"]
[WhiteClock "0:01:10"]
[BlackClock "0:02:31"]

1. d4 {[%clk 0:02:59]}  Nf6 {[%clk 0:02:44]} 2. Nc3 {[%clk 0:02:59]}  d5 {[%clk 0:02:44]} 3. Bf4 {[%clk 0:03:00]}  c5 {[%clk 0:02:45]} 4. e3 {[%clk 0:03:00]}  cxd4 {[%clk 0:02:45]} 5. exd4 {[%clk 0:03:01]}  Bg4 {[%clk 0:02:46]} 6. f3 {[%clk 0:03:01]}  Bd7 {[%clk 0:02:47]} 7. Nb5 {[%clk 0:03:02]}  Bxb5 {[%clk 0:02:46]} 8. Bxb5+ {[%clk 0:03:03]}  Nc6 {[%clk 0:02:47]} 9. c3 {[%clk 0:03:02]}  e6 {[%clk 0:02:48]} 10. Ne2 {[%clk 0:03:02]}  Bd6 {[%clk 0:02:48]} 11. Qd2 {[%clk 0:03:01]}  Bxf4 {[%clk 0:02:49]} 12. Nxf4 {[%clk 0:02:58]}  O-O {[%clk 0:02:50]} 13. O-O {[%clk 0:02:59]}  Qb6 {[%clk 0:02:49]} 14. Kh1 {[%clk 0:02:52]}  Qxb5 {[%clk 0:02:49]} 15. Nd3 {[%clk 0:02:44]}  Qb6 {[%clk 0:02:48]} 16. g4 {[%clk 0:02:44]}  Qc7 {[%clk 0:02:47]} 17. Rg1 {[%clk 0:02:42]}  e5 {[%clk 0:02:47]} 18. g5 {[%clk 0:02:36]}  Nh5 {[%clk 0:02:47]} 19. Rae1 {[%clk 0:02:18]}  exd4 {[%clk 0:02:44]} 20. f4 {[%clk 0:02:19]}  dxc3 {[%clk 0:02:42]} 21. bxc3 {[%clk 0:02:19]}  Rfe8 {[%clk 0:02:40]} 22. Ref1 {[%clk 0:02:19]}  Re4 {[%clk 0:02:40]} 23. f5 {[%clk 0:02:14]}  Rae8 {[%clk 0:02:40]} 24. Rf2 {[%clk 0:02:13]}  Ne5 {[%clk 0:02:39]} 25. g6 {[%clk 0:01:53]}  hxg6 {[%clk 0:02:37]} 26. fxg6 {[%clk 0:01:53]}  Nxg6 {[%clk 0:02:38]} 27. Nb4 {[%clk 0:01:51]}  Rxb4 {[%clk 0:02:36]} 28. cxb4 {[%clk 0:01:50]}  d4 {[%clk 0:02:36]} 29. Qg5 {[%clk 0:01:21]}  Nhf4 {[%clk 0:02:33]} 30. h4 {[%clk 0:01:19]}  Nh3 {[%clk 0:02:30]} 31. Qg3 {[%clk 0:01:09]}  Qxg3 {[%clk 0:02:29]} 32. Rxg3 {[%clk 0:01:09]}  Nxf2+ {[%clk 0:02:30]} 33. Kg2 {[%clk 0:01:09]}  Ne4 {[%clk 0:02:31]} 34. Rc3 {[%clk 0:01:10]}  dxc3 {[%clk 0:02:31]} 0-1


[Site "https://www.chess.com"]

[Event "Titled Tuesday Blitz May 24 Late 2022"]
[White "Petrova, Irina"]
[Black "Halak, Miklos"]
[WhiteFideId "14124122"]
[BlackFideId "726400"]
[WhiteElo "1993"]
[BlackElo "2197"]
[Result "0-1"]
[Round "05"]
[TimeControl "180+1"]
[Date "2022.05.25"]
[WhiteClock "0:00:07"]
[BlackClock "0:00:35"]

1. e4 {[%clk 0:03:00]}  e5 {[%clk 0:02:59]} 2. Nf3 {[%clk 0:03:00]}  Nc6 {[%clk 0:03:00]} 3. Bb5 {[%clk 0:03:01]}  a6 {[%clk 0:03:00]} 4. Ba4 {[%clk 0:03:01]}  b5 {[%clk 0:03:00]} 5. Bb3 {[%clk 0:03:00]}  Na5 {[%clk 0:03:01]} 6. O-O {[%clk 0:02:04]}  d6 {[%clk 0:03:01]} 7. d4 {[%clk 0:01:36]}  exd4 {[%clk 0:03:02]} 8. Nxd4 {[%clk 0:01:30]}  Bb7 {[%clk 0:03:02]} 9. Bd2 {[%clk 0:01:24]}  c5 {[%clk 0:03:00]} 10. Bd5 {[%clk 0:01:02]}  Bxd5 {[%clk 0:02:52]} 11. exd5 {[%clk 0:01:03]}  cxd4 {[%clk 0:02:51]} 12. Qe1+ {[%clk 0:00:58]}  Be7 {[%clk 0:02:46]} 13. Bxa5 {[%clk 0:00:53]}  Qc8 {[%clk 0:02:45]} 14. Qd1 {[%clk 0:00:25]}  Qc5 {[%clk 0:02:42]} 15. a3 {[%clk 0:00:22]}  Qxd5 {[%clk 0:02:27]} 16. Nc3 {[%clk 0:00:22]}  Qc4 {[%clk 0:02:20]} 17. Ne2 {[%clk 0:00:20]}  d3 {[%clk 0:02:17]} 18. cxd3 {[%clk 0:00:19]}  Qg4 {[%clk 0:02:11]} 19. Bc3 {[%clk 0:00:17]}  Nf6 {[%clk 0:02:10]} 20. Re1 {[%clk 0:00:16]}  O-O {[%clk 0:02:08]} 21. Ng3 {[%clk 0:00:16]}  Qxd1 {[%clk 0:02:08]} 22. Raxd1 {[%clk 0:00:17]}  Nd5 {[%clk 0:02:01]} 23. Nf5 {[%clk 0:00:16]}  Bf6 {[%clk 0:01:53]} 24. Bxf6 {[%clk 0:00:16]}  Nxf6 {[%clk 0:01:52]} 25. Nxd6 {[%clk 0:00:16]}  Rfd8 {[%clk 0:01:51]} 26. Ne4 {[%clk 0:00:16]}  Nd5 {[%clk 0:01:49]} 27. d4 {[%clk 0:00:16]}  a5 {[%clk 0:01:46]} 28. Nc5 {[%clk 0:00:16]}  b4 {[%clk 0:01:44]} 29. a4 {[%clk 0:00:15]}  g6 {[%clk 0:01:39]} 30. g3 {[%clk 0:00:15]}  Rab8 {[%clk 0:01:31]} 31. Kg2 {[%clk 0:00:15]}  b3 {[%clk 0:01:24]} 32. Kf3 {[%clk 0:00:15]}  Rb4 {[%clk 0:01:20]} 33. Rd3 {[%clk 0:00:15]}  Nf6 {[%clk 0:01:15]} 34. Red1 {[%clk 0:00:14]}  Rd5 {[%clk 0:01:04]} 35. Rxb3 {[%clk 0:00:12]}  Rbxd4 {[%clk 0:00:55]} 36. Rxd4 {[%clk 0:00:12]}  Rxd4 {[%clk 0:00:56]} 37. Rb5 {[%clk 0:00:12]}  g5 {[%clk 0:00:42]} 38. Rxa5 {[%clk 0:00:12]}  g4+ {[%clk 0:00:42]} 39. Kg2 {[%clk 0:00:12]}  Rd2 {[%clk 0:00:42]} 40. Rb5 {[%clk 0:00:12]}  Nd5 {[%clk 0:00:38]} 41. a5 {[%clk 0:00:11]}  Ne3+ {[%clk 0:00:36]} 42. Kg1 {[%clk 0:00:07]}  Rd1# {[%clk 0:00:35]} 0-1


[Site "https://www.chess.com"]

[Event "Titled Tuesday Blitz May 24 Late 2022"]
[White "Prieto Aranguren, Alain"]
[Black "Koutlas, Nikolaos"]
[WhiteFideId "2268906"]
[BlackFideId "25827138"]
[WhiteElo "2235"]
[BlackElo "1645"]
[Result "0-1"]
[Round "05"]
[TimeControl "180+1"]
[Date "2022.05.25"]
[WhiteClock "0:01:26"]
[BlackClock "0:01:03"]

1. d4 {[%clk 0:02:59]}  e6 {[%clk 0:02:56]} 2. e4 {[%clk 0:02:59]}  d5 {[%clk 0:02:56]} 3. exd5 {[%clk 0:02:59]}  exd5 {[%clk 0:02:56]} 4. Bd3 {[%clk 0:02:59]}  c5 {[%clk 0:02:55]} 5. dxc5 {[%clk 0:02:58]}  Bxc5 {[%clk 0:02:54]} 6. Nf3 {[%clk 0:02:59]}  Nf6 {[%clk 0:02:55]} 7. O-O {[%clk 0:02:59]}  O-O {[%clk 0:02:55]} 8. Nbd2 {[%clk 0:02:58]}  Qd6 {[%clk 0:02:52]} 9. Nb3 {[%clk 0:02:58]}  Bb6 {[%clk 0:02:52]} 10. Bg5 {[%clk 0:02:58]}  Nc6 {[%clk 0:02:51]} 11. c3 {[%clk 0:02:57]}  Re8 {[%clk 0:02:44]} 12. Qc2 {[%clk 0:02:53]}  h6 {[%clk 0:02:42]} 13. Bh4 {[%clk 0:02:53]}  Bg4 {[%clk 0:02:40]} 14. Nfd4 {[%clk 0:02:45]}  Rac8 {[%clk 0:02:39]} 15. Nxc6 {[%clk 0:02:35]}  bxc6 {[%clk 0:02:37]} 16. Rfe1 {[%clk 0:02:29]}  c5 {[%clk 0:02:20]} 17. c4 {[%clk 0:02:29]}  d4 {[%clk 0:02:17]} 18. Nd2 {[%clk 0:02:27]}  Ba5 {[%clk 0:02:14]} 19. Rxe8+ {[%clk 0:02:25]}  Rxe8 {[%clk 0:02:12]} 20. f3 {[%clk 0:02:08]}  Qf4 {[%clk 0:02:01]} 21. Bxf6 {[%clk 0:01:56]}  Bxd2 {[%clk 0:01:59]} 22. fxg4 {[%clk 0:01:46]}  Qe3+ {[%clk 0:01:27]} 23. Kf1 {[%clk 0:01:36]}  gxf6 {[%clk 0:01:04]} 24. Be2 {[%clk 0:01:26]}  Qxe2+ {[%clk 0:01:03]} 0-1


[Site "https://www.chess.com"]

[Event "Titled Tuesday Blitz May 24 Late 2022"]
[White "Proudian, Armen"]
[Black "Lopez Idarraga, Daniel Eduardo"]
[WhiteFideId "2130734"]
[BlackFideId "4405501"]
[WhiteElo "2380"]
[BlackElo "2059"]
[Result "1-0"]
[Round "05"]
[TimeControl "180+1"]
[Date "2022.05.25"]
[WhiteClock "0:00:42"]
[BlackClock "0:00:32"]

1. e4 {[%clk 0:03:00]}  e6 {[%clk 0:02:52]} 2. d4 {[%clk 0:02:59]}  d5 {[%clk 0:02:52]} 3. exd5 {[%clk 0:02:58]}  exd5 {[%clk 0:02:52]} 4. Bd3 {[%clk 0:02:59]}  Bd6 {[%clk 0:02:53]} 5. Qf3 {[%clk 0:02:59]}  Ne7 {[%clk 0:02:53]} 6. Ne2 {[%clk 0:02:59]}  c6 {[%clk 0:02:53]} 7. Bf4 {[%clk 0:03:00]}  Bxf4 {[%clk 0:02:53]} 8. Nxf4 {[%clk 0:03:00]}  O-O {[%clk 0:02:53]} 9. Nd2 {[%clk 0:02:59]}  Bf5 {[%clk 0:02:54]} 10. O-O-O {[%clk 0:02:48]}  Bxd3 {[%clk 0:02:53]} 11. Nxd3 {[%clk 0:02:49]}  Nd7 {[%clk 0:02:50]} 12. h4 {[%clk 0:02:46]}  Re8 {[%clk 0:02:41]} 13. h5 {[%clk 0:02:45]}  h6 {[%clk 0:02:40]} 14. g4 {[%clk 0:02:42]}  Nc8 {[%clk 0:02:00]} 15. Rhg1 {[%clk 0:02:23]}  Qg5 {[%clk 0:01:56]} 16. Qg3 {[%clk 0:02:22]}  Qf6 {[%clk 0:01:40]} 17. f4 {[%clk 0:02:15]}  Qxd4 {[%clk 0:01:37]} 18. g5 {[%clk 0:02:15]}  hxg5 {[%clk 0:01:35]} 19. Qxg5 {[%clk 0:02:08]}  Qf6 {[%clk 0:01:16]} 20. Qg4 {[%clk 0:02:06]}  Nf8 {[%clk 0:01:10]} 21. Rg2 {[%clk 0:01:57]}  Nd6 {[%clk 0:01:08]} 22. Rdg1 {[%clk 0:01:56]}  Nf5 {[%clk 0:01:08]} 23. Ne5 {[%clk 0:01:53]}  Rad8 {[%clk 0:00:57]} 24. Ndf3 {[%clk 0:01:30]}  Ne6 {[%clk 0:00:52]} 25. Ng5 {[%clk 0:00:41]}  Nxg5 {[%clk 0:00:48]} 26. Qxg5 {[%clk 0:00:42]}  Qxg5 {[%clk 0:00:48]} 27. Rxg5 {[%clk 0:00:43]}  Nd4 {[%clk 0:00:32]} 28. Rxg7+ {[%clk 0:00:42]} 1-0


[Site "https://www.chess.com"]

[Event "Titled Tuesday Blitz May 24 Late 2022"]
[White "Redor, Menandro"]
[Black "Krstulovic, Alex"]
[WhiteFideId "5222010"]
[BlackFideId "760056"]
[WhiteElo "1986"]
[BlackElo "2193"]
[Result "0-1"]
[Round "05"]
[TimeControl "180+1"]
[Date "2022.05.25"]
[WhiteClock "0:00:10"]
[BlackClock "0:00:05"]

1. d4 {[%clk 0:02:55]}  Nf6 {[%clk 0:02:59]} 2. Bf4 {[%clk 0:02:55]}  d5 {[%clk 0:02:58]} 3. Nd2 {[%clk 0:02:52]}  c5 {[%clk 0:02:41]} 4. e3 {[%clk 0:02:51]}  Nc6 {[%clk 0:02:41]} 5. c3 {[%clk 0:02:50]}  e6 {[%clk 0:02:42]} 6. Ngf3 {[%clk 0:02:50]}  cxd4 {[%clk 0:02:40]} 7. exd4 {[%clk 0:02:49]}  Nh5 {[%clk 0:02:40]} 8. Bg3 {[%clk 0:02:47]}  Bd6 {[%clk 0:02:39]} 9. Bd3 {[%clk 0:02:44]}  Nf4 {[%clk 0:02:39]} 10. Bxf4 {[%clk 0:02:32]}  Bxf4 {[%clk 0:02:40]} 11. Qe2 {[%clk 0:02:31]}  O-O {[%clk 0:02:38]} 12. O-O {[%clk 0:02:30]}  f6 {[%clk 0:02:38]} 13. Rad1 {[%clk 0:02:27]}  e5 {[%clk 0:02:36]} 14. dxe5 {[%clk 0:02:21]}  fxe5 {[%clk 0:02:37]} 15. Bc2 {[%clk 0:02:15]}  Bg4 {[%clk 0:02:35]} 16. h3 {[%clk 0:02:03]}  Bh5 {[%clk 0:02:29]} 17. g4 {[%clk 0:01:49]}  Qc8 {[%clk 0:02:07]} 18. gxh5 {[%clk 0:01:33]}  Qxh3 {[%clk 0:02:08]} 19. Qd3 {[%clk 0:01:30]}  e4 {[%clk 0:01:45]} 20. Qxd5+ {[%clk 0:01:28]}  Kh8 {[%clk 0:01:32]} 21. Qxe4 {[%clk 0:01:26]}  Qg4+ {[%clk 0:01:32]} 22. Kh1 {[%clk 0:01:08]}  Qxh5+ {[%clk 0:01:29]} 23. Kg1 {[%clk 0:01:06]}  Qg4+ {[%clk 0:01:07]} 24. Kh1 {[%clk 0:01:05]}  Qh3+ {[%clk 0:01:02]} 25. Kg1 {[%clk 0:01:04]}  Rf6 {[%clk 0:00:56]} 26. Qxh7+ {[%clk 0:01:02]}  Qxh7 {[%clk 0:00:55]} 27. Bxh7 {[%clk 0:01:03]}  Kxh7 {[%clk 0:00:56]} 28. Rfe1 {[%clk 0:00:59]}  Raf8 {[%clk 0:00:37]} 29. Ne4 {[%clk 0:00:55]}  Rg6+ {[%clk 0:00:36]} 30. Kf1 {[%clk 0:00:55]}  Ne5 {[%clk 0:00:34]} 31. Nxe5 {[%clk 0:00:53]}  Bxe5 {[%clk 0:00:35]} 32. Rd5 {[%clk 0:00:53]}  Bc7 {[%clk 0:00:27]} 33. Rh5+ {[%clk 0:00:49]}  Kg8 {[%clk 0:00:27]} 34. Rg5 {[%clk 0:00:47]}  Rh6 {[%clk 0:00:27]} 35. Re3 {[%clk 0:00:44]}  Bf4 {[%clk 0:00:25]} 36. Rd3 {[%clk 0:00:23]}  Bxg5 {[%clk 0:00:23]} 37. Nxg5 {[%clk 0:00:24]}  Rh2 {[%clk 0:00:20]} 38. Ne4 {[%clk 0:00:23]}  Rh1+ {[%clk 0:00:18]} 39. Kg2 {[%clk 0:00:21]}  Rb1 {[%clk 0:00:17]} 40. b4 {[%clk 0:00:21]}  Rb2 {[%clk 0:00:17]} 41. a4 {[%clk 0:00:21]}  a6 {[%clk 0:00:17]} 42. Rd7 {[%clk 0:00:19]}  Rc2 {[%clk 0:00:14]} 43. Rxb7 {[%clk 0:00:17]}  Rf4 {[%clk 0:00:14]} 44. Re7 {[%clk 0:00:14]}  Rf7 {[%clk 0:00:09]} 45. Rxf7 {[%clk 0:00:13]}  Kxf7 {[%clk 0:00:09]} 46. b5 {[%clk 0:00:13]}  axb5 {[%clk 0:00:09]} 47. axb5 {[%clk 0:00:14]}  Rb2 {[%clk 0:00:09]} 48. c4 {[%clk 0:00:13]}  Ke6 {[%clk 0:00:08]} 49. Kf3 {[%clk 0:00:13]}  Ke5 {[%clk 0:00:08]} 50. Ng5 {[%clk 0:00:12]}  Rb3+ {[%clk 0:00:07]} 51. Kg4 {[%clk 0:00:12]}  Rb4 {[%clk 0:00:07]} 52. f4+ {[%clk 0:00:12]}  Kf6 {[%clk 0:00:06]} 53. Ne4+ {[%clk 0:00:12]}  Ke7 {[%clk 0:00:06]} 54. Nc3 {[%clk 0:00:09]}  Rxc4 {[%clk 0:00:05]} 55. Nd5+ {[%clk 0:00:09]}  Kd6 {[%clk 0:00:05]} 56. Ne3 {[%clk 0:00:10]}  Rb4 {[%clk 0:00:04]} 57. Nf5+ {[%clk 0:00:10]}  Ke6 {[%clk 0:00:04]} 58. Nxg7+ {[%clk 0:00:11]}  Kf7 {[%clk 0:00:04]} 59. Nf5 {[%clk 0:00:12]}  Kf6 {[%clk 0:00:04]} 60. Nd6 {[%clk 0:00:12]}  Rd4 {[%clk 0:00:04]} 61. b6 {[%clk 0:00:09]}  Rxd6 {[%clk 0:00:04]} 62. b7 {[%clk 0:00:10]}  Rb6 {[%clk 0:00:04]} 63. f5 {[%clk 0:00:11]}  Rxb7 {[%clk 0:00:05]} 64. Kh5 {[%clk 0:00:11]}  Rb4 {[%clk 0:00:05]} 65. Kh6 {[%clk 0:00:10]}  Rh4# {[%clk 0:00:05]} 0-1


[Site "https://www.chess.com"]

[Event "Titled Tuesday Blitz May 24 Late 2022"]
[White "Riehle, Marco"]
[Black "Adewumi, Tanitoluwa"]
[WhiteFideId "12904392"]
[BlackFideId "30966396"]
[WhiteElo "2462"]
[BlackElo "2518"]
[Result "1-0"]
[Round "05"]
[TimeControl "180+1"]
[Date "2022.05.25"]
[WhiteClock "0:01:30"]
[BlackClock "0:00:01"]

1. e4 {[%clk 0:03:00]}  c5 {[%clk 0:02:52]} 2. a3 {[%clk 0:03:00]}  g6 {[%clk 0:02:51]} 3. h4 {[%clk 0:02:59]}  h5 {[%clk 0:02:50]} 4. Nc3 {[%clk 0:03:00]}  Bg7 {[%clk 0:02:50]} 5. Bc4 {[%clk 0:03:00]}  Nc6 {[%clk 0:02:48]} 6. d3 {[%clk 0:03:01]}  d6 {[%clk 0:02:47]} 7. Nf3 {[%clk 0:03:00]}  Nf6 {[%clk 0:02:44]} 8. Bg5 {[%clk 0:03:00]}  Bg4 {[%clk 0:02:43]} 9. Qd2 {[%clk 0:03:00]}  a6 {[%clk 0:02:39]} 10. O-O-O {[%clk 0:02:58]}  Bxf3 {[%clk 0:02:21]} 11. gxf3 {[%clk 0:02:57]}  Ne5 {[%clk 0:02:22]} 12. f4 {[%clk 0:02:51]}  Nxc4 {[%clk 0:02:06]} 13. dxc4 {[%clk 0:02:52]}  O-O {[%clk 0:01:42]} 14. f5 {[%clk 0:02:52]}  Qc8 {[%clk 0:01:33]} 15. Rhg1 {[%clk 0:02:49]}  Nxe4 {[%clk 0:01:26]} 16. Nxe4 {[%clk 0:02:46]}  Qxf5 {[%clk 0:01:27]} 17. Nc3 {[%clk 0:02:40]}  Rae8 {[%clk 0:01:10]} 18. Rde1 {[%clk 0:02:33]}  Kh7 {[%clk 0:00:58]} 19. Bxe7 {[%clk 0:02:27]}  Rg8 {[%clk 0:00:29]} 20. Bg5 {[%clk 0:02:27]}  Bd4 {[%clk 0:00:26]} 21. Be3 {[%clk 0:02:24]}  Be5 {[%clk 0:00:20]} 22. Nd5 {[%clk 0:02:19]}  Re6 {[%clk 0:00:16]} 23. Rg5 {[%clk 0:02:11]}  Qh3 {[%clk 0:00:15]} 24. Reg1 {[%clk 0:02:11]}  Qxh4 {[%clk 0:00:13]} 25. f4 {[%clk 0:02:05]}  Bh8 {[%clk 0:00:11]} 26. f5 {[%clk 0:01:59]}  Rxe3 {[%clk 0:00:10]} 27. Nxe3 {[%clk 0:01:55]}  Bf6 {[%clk 0:00:08]} 28. fxg6+ {[%clk 0:01:51]}  fxg6 {[%clk 0:00:09]} 29. R5g2 {[%clk 0:01:51]}  Bd4 {[%clk 0:00:09]} 30. Rf1 {[%clk 0:01:48]}  Re8 {[%clk 0:00:08]} 31. Nd5 {[%clk 0:01:46]}  Bg7 {[%clk 0:00:07]} 32. b3 {[%clk 0:01:38]}  Kh8 {[%clk 0:00:03]} 33. Rxg6 {[%clk 0:01:33]}  Qe4 {[%clk 0:00:03]} 34. Rh6+ {[%clk 0:01:30]}  Bxh6 {[%clk 0:00:01]} 35. Qxh6+ {[%clk 0:01:31]}  Qh7 {[%clk 0:00:01]} 36. Qxh7+ {[%clk 0:01:30]} 1-0


[Site "https://www.chess.com"]

[Event "Titled Tuesday Blitz May 24 Late 2022"]
[White "Seletsky, Grigory"]
[Black "Zherebtsova, Alexandra"]
[WhiteFideId "14112191"]
[BlackFideId "24129518"]
[WhiteElo "2492"]
[BlackElo "2025"]
[Result "1-0"]
[Round "05"]
[TimeControl "180+1"]
[Date "2022.05.25"]
[WhiteClock "0:00:06"]
[BlackClock "0:00:04"]

1. e4 {[%clk 0:02:57]}  e5 {[%clk 0:02:58]} 2. Nf3 {[%clk 0:02:55]}  Nc6 {[%clk 0:02:58]} 3. Bc4 {[%clk 0:02:55]}  Nf6 {[%clk 0:02:57]} 4. d3 {[%clk 0:02:55]}  h6 {[%clk 0:02:57]} 5. O-O {[%clk 0:02:52]}  d6 {[%clk 0:02:56]} 6. c3 {[%clk 0:02:50]}  g6 {[%clk 0:02:55]} 7. Re1 {[%clk 0:02:48]}  Bg7 {[%clk 0:02:53]} 8. Nbd2 {[%clk 0:02:41]}  O-O {[%clk 0:02:52]} 9. a4 {[%clk 0:02:38]}  Qe7 {[%clk 0:02:50]} 10. Nf1 {[%clk 0:02:37]}  Nd8 {[%clk 0:02:47]} 11. d4 {[%clk 0:02:32]}  Nh5 {[%clk 0:02:46]} 12. Ng3 {[%clk 0:02:24]}  Nf4 {[%clk 0:02:41]} 13. Ne2 {[%clk 0:02:10]}  Nde6 {[%clk 0:02:30]} 14. Nxf4 {[%clk 0:02:05]}  Nxf4 {[%clk 0:02:29]} 15. Bxf4 {[%clk 0:02:03]}  exf4 {[%clk 0:02:30]} 16. e5 {[%clk 0:02:02]}  Bf5 {[%clk 0:02:09]} 17. exd6 {[%clk 0:02:01]}  Qxd6 {[%clk 0:02:09]} 18. Ne5 {[%clk 0:01:59]}  c6 {[%clk 0:01:31]} 19. Qb3 {[%clk 0:01:55]}  Qc7 {[%clk 0:01:21]} 20. Re2 {[%clk 0:01:49]}  Bxe5 {[%clk 0:00:53]} 21. Rxe5 {[%clk 0:01:48]}  Rae8 {[%clk 0:00:50]} 22. Rae1 {[%clk 0:01:46]}  Rxe5 {[%clk 0:00:50]} 23. Rxe5 {[%clk 0:01:45]}  f3 {[%clk 0:00:50]} 24. gxf3 {[%clk 0:01:27]}  Kg7 {[%clk 0:00:46]} 25. Qd1 {[%clk 0:01:11]}  Rd8 {[%clk 0:00:42]} 26. Qe2 {[%clk 0:01:08]}  Rd7 {[%clk 0:00:42]} 27. Qe3 {[%clk 0:01:07]}  Qd6 {[%clk 0:00:41]} 28. f4 {[%clk 0:01:06]}  Qf6 {[%clk 0:00:40]} 29. a5 {[%clk 0:01:02]}  Qh4 {[%clk 0:00:34]} 30. Qg3 {[%clk 0:00:58]}  Qh3 {[%clk 0:00:34]} 31. Qxh3 {[%clk 0:00:56]}  Bxh3 {[%clk 0:00:34]} 32. b4 {[%clk 0:00:54]}  Bf5 {[%clk 0:00:30]} 33. f3 {[%clk 0:00:54]}  b6 {[%clk 0:00:27]} 34. Kf2 {[%clk 0:00:53]}  f6 {[%clk 0:00:19]} 35. Re8 {[%clk 0:00:49]}  bxa5 {[%clk 0:00:19]} 36. bxa5 {[%clk 0:00:48]}  Rb7 {[%clk 0:00:19]} 37. Ra8 {[%clk 0:00:45]}  h5 {[%clk 0:00:17]} 38. h4 {[%clk 0:00:44]}  Rb2+ {[%clk 0:00:12]} 39. Kg3 {[%clk 0:00:42]}  Rc2 {[%clk 0:00:12]} 40. Rxa7+ {[%clk 0:00:40]}  Kh6 {[%clk 0:00:12]} 41. Bg8 {[%clk 0:00:39]}  g5 {[%clk 0:00:12]} 42. fxg5+ {[%clk 0:00:35]}  fxg5 {[%clk 0:00:13]} 43. c4 {[%clk 0:00:30]}  gxh4+ {[%clk 0:00:12]} 44. Kxh4 {[%clk 0:00:30]}  Rg2 {[%clk 0:00:11]} 45. Rc7 {[%clk 0:00:23]}  Rxg8 {[%clk 0:00:10]} 46. Rxc6+ {[%clk 0:00:23]}  Bg6 {[%clk 0:00:10]} 47. a6 {[%clk 0:00:19]}  Ra8 {[%clk 0:00:09]} 48. d5 {[%clk 0:00:19]}  Kg7 {[%clk 0:00:09]} 49. Kg5 {[%clk 0:00:18]}  Be8 {[%clk 0:00:09]} 50. Rb6 {[%clk 0:00:17]}  Rc8 {[%clk 0:00:08]} 51. a7 {[%clk 0:00:16]}  Ra8 {[%clk 0:00:08]} 52. Rb7+ {[%clk 0:00:15]}  Bf7 {[%clk 0:00:08]} 53. c5 {[%clk 0:00:15]}  Rd8 {[%clk 0:00:07]} 54. d6 {[%clk 0:00:13]}  Kg8 {[%clk 0:00:06]} 55. c6 {[%clk 0:00:13]}  Bd5 {[%clk 0:00:06]} 56. Rc7 {[%clk 0:00:09]}  Kf8 {[%clk 0:00:04]} 57. d7 {[%clk 0:00:07]}  Ke7 {[%clk 0:00:04]} 58. Kxh5 {[%clk 0:00:07]}  Kd6 {[%clk 0:00:04]} 59. Rc8 {[%clk 0:00:07]}  Ke7 {[%clk 0:00:04]} 60. Rxd8 {[%clk 0:00:06]}  Kxd8 {[%clk 0:00:04]} 61. a8=Q+ {[%clk 0:00:06]} 1-0


[Site "https://www.chess.com"]